Cogmind - Beta 11.1 @@@ ROGUE MODE // 2022.06.28 @ 09:30:08 Player: tionichm Result: Destroyed by S-10 Pest with Light Assault Rifle Performance ------------- Evolutions (1) 500 Regions Visited (2) 400 Robots Destroyed (35) 175 Value Destroyed (606) 606 Prototype IDs (0) 0 Alien Tech Used (0) 0 Bonus (0) 0 TOTAL SCORE: 1681 Bonus ------- None Cogmind --------- Core Integrity 0/400 Matter 300/300 Energy 98/100 System Corruption 2% Temperature Cool (0) Movement Rolling (95) Location -9/Materials Parts ------- > --- POWER (1) -------- (None) > --- PROPULSION (4) --- Compact Wheel Armored Wheel > --- UTILITY (2) ------ Small Storage Unit Improved Targeting Computer > --- WEAPON (2) ------- Heavy Assault Rifle > --- INVENTORY (8) ---- Terrain Scan Processor Improved Targeting Computer Light Armor Plating Particle Gun Particle Gun Particle Gun Peak State ------------ > --- POWER ------------ Light Ion Engine > --- PROPULSION ------- Wheel Compact Wheel Armored Wheel Flight Unit > --- UTILITY ---------- Small Storage Unit Improved Targeting Computer > --- WEAPON ----------- Particle Gun Particle Gun > --- INVENTORY -------- Light Ion Engine Flight Unit Small Matter Pod Improved Targeting Computer Light Armor Plating Particle Gun Particle Gun [Rating: 14] Favorites ----------- Power Light Ion Engine Engine Light Ion Engine Propulsion Aluminum Leg Treads Light Treads Leg Aluminum Leg Wheel Wheel Flight Unit Flight Unit Utility Small Storage Unit Device Tractor Beam Storage Small Storage Unit Processor Improved Targeting Computer Weapon Particle Gun Energy Gun Particle Gun Ballistic Gun Assault Rifle Impact Weapon Flail Build | -11 -10 -9 ------- Run | Scr Mat Mat Slots Evolved 2 | . . 2 Power . | . . . Propulsion 2 | . . 2 Utility . | . . . Weapon . | . . . Parts Attached 32 | 7 2 23 Power 6 | 1 1 4 Engine 6 | 1 1 4 Core . | . . . Reactor . | . . . Propulsion 12 | 2 . 10 Treads 2 | . . 2 Leg 2 | 2 . . Wheel 6 | . . 6 Hover . | . . . Flight 2 | . . 2 Utility 6 | 2 1 3 Device 1 | 1 . . Storage 3 | 1 . 2 Processor 2 | . 1 1 Hackware . | . . . Protection . | . . . Artifact . | . . . Weapon 8 | 2 . 6 Energy Gun 4 | 1 . 3 Energy Cannon . | . . . Ballistic Gun 3 | 1 . 2 Ballistic Cannon . | . . . Launcher . | . . . Special Weapon . | . . . Impact Weapon 1 | . . 1 Slashing Weapon . | . . . Piercing Weapon . | . . . Special Melee Weapon . | . . . Unidentified Prototypes . | . . . Parts Lost 14 | . . 14 Power 4 | . . 4 Propulsion 7 | . . 7 Utility . | . . . Weapon 3 | . . 3 Highest Loss Streak 6 | . . 6 To Critical Strikes 1 | . . 1 Average Slot Usage (%) 85 | . 100 76 Engine 10 | . 14 8 Leg 13 | . 28 4 Wheel 12 | . . 19 Flight 1 | . . 2 Device 4 | . 11 . Storage 11 | . 14 10 Processor 7 | . 2 11 Energy Gun 13 | . 14 13 Ballistic Gun 8 | . 14 5 Naked Turns . | . . . Heaviest Build 27 | 13 13 27 Greatest Support 48 | 20 20 48 Greatest Overweight (x) 7 | . . 7 Average Overweight (x) . | . . . Largest Inventory Capacity 15 | 8 8 15 Average Capacity 8 | 6 8 9 Most Carried 10 | 5 8 10 Average Carried 6 | 2 7 6 Final Capacity 8 | 8 8 8 Final Carried 8 | 5 8 6 Class Distribution -------------------- 82% | Mutant 17% | Scavenger-Mutant Dominant Class ---------------- Mutant | -10/Materials Mutant | -9/Materials Resources | -11 -10 -9 ----------- Run | Scr Mat Mat Matter Collected 663 | 316 100 247 Remotely 153 | 72 81 . Salvage Created 1260 | 84 406 770 Parts 62 | 8 18 36 Haulers Intercepted . | . . . Recyclers Shooed 2 | . . 2 Parts Field Recycled . | . . . Retrieved Matter . | . . . Parts Self-Destructed . | . . . Prevented . | . . . Kills | -11 -10 -9 ------- Run | Scr Mat Mat Combat Hostiles Destroyed 20 | . 8 12 Guns 18 | . 8 10 Classes Destroyed 7 | 2 3 2 Worker 5 | 2 1 2 Recycler 7 | 1 2 4 Watcher 3 | . 1 2 Swarmer 10 | . 6 4 Grunt 7 | . 2 5 Duelist 1 | . . 1 Sentry 2 | . . 2 Best Kill Streak 7 | 2 7 5 Combat Bots Only 6 | . 6 3 Max Kills in Single Turn 2 | 1 2 1 Gunslinging 1 | . 1 . Exploded . | . . . Melee . | . . . Uniques/NPCs Destroyed . | . . . Combat | -11 -10 -9 -------- Run | Scr Mat Mat Damage Taken 1927 | . 321 1606 Core 453 | . 49 404 Absorbed by Shields . | . . . Core Remaining (%) 90 | 100 80 . Volleys Fired 91 | 8 26 57 Largest 2 | 2 2 2 Hottest 130 | 60 60 130 Shots Fired 156 | 11 52 93 Gun 156 | 11 52 93 Cannon . | . . . Launcher . | . . . Special . | . . . Kinetic 50 | 3 26 21 Thermal 70 | . . 70 Explosive . | . . . Electromagnetic 36 | 8 26 2 Robot Hit Streak 16 | 3 16 6 Robot Miss Streak 3 | 3 2 3 Penetration Max . | . . . Secondary Targets 3 | . 2 1 Max Gunslinging Chain 1 | . 1 1 Shots Hit Robots 100 | 4 35 61 Core Hits 44 | 3 18 23 Critical Kills . | . . . Critical Parts Destroyed 3 | . . 3 Critical Strikes 6 | . . 6 Burn 3 | . . 3 Smash 3 | . . 3 Melee Attacks 13 | . . 13 Impact 13 | . . 13 Slashing . | . . . Piercing . | . . . Sneak Attacks . | . . . Combat Hostiles . | . . . Follow-up Attacks . | . . . Damage Inflicted 1613 | 55 483 1075 Guns 1388 | 55 483 850 Cannons . | . . . Explosions . | . . . Melee 225 | . . 225 Ramming . | . . . Kinetic 480 | 15 229 236 Thermal 614 | . . 614 Explosive . | . . . Electromagnetic 294 | 40 254 . Impact 225 | . . 225 Slashing . | . . . Piercing . | . . . Highest Corruption 2 | . . 2 Average Corruption 2 | . . 2 Corruption Purged . | . . . Corruption Blocked . | . . . Effects 1 | . . 1 Message Errors 1 | . . 1 Overload Shots . | . . . Overflow Damage 91 | . . 91 Projectiles . | . . . Explosions . | . . . Melee 91 | . . 91 Knockbacks . | . . . Impact . | . . . Kinetic . | . . . Secondary . | . . . Self-Inflicted Damage . | . . . Shots . | . . . Rammed . | . . . Targets Rammed . | . . . Kicked . | . . . Crushed . | . . . Highest Temperature 307 | . 63 307 Average Temperature 83 | . 27 92 Received Heat Transfer 609 | . 90 519 Siege Activations . | . . . Robots Corrupted . | . . . Combat Hostiles . | . . . Parts Fried 5 | . 1 4 Impact Corruptions 4 | . . 4 Robots Melted . | . . . Combat Hostiles . | . . . Parts Melted . | . . . Heat Transferred 1717 | . . 1717 Parts Sabotaged . | . . . Parts Stolen . | . . . Parts Stripped . | . . . Power Chain Reactions . | . . . Missiles Intercepted . | . . . Alert | -11 -10 -9 ------- Run | Scr Mat Mat Peak Influence 364 | 15 231 364 Initial 25 | . 9 25 Average 147 | 5 126 185 Maximum Alert Level 1 | . 1 1 Low Security (%) 61 | 100 84 40 Level 1 38 | . 15 59 Level 2 . | . . . Level 3 . | . . . Level 4 . | . . . Level 5 . | . . . High Security . | . . . Max Security . | . . . Squads Dispatched 3 | . 2 1 Investigation 1 | . 1 . Extermination . | . . . Reinforcement 2 | . 1 1 Assault . | . . . Garrison . | . . . Intercept . | . . . Searches Triggered . | . . . Construction Impeded . | . . . Haulers Reinforced . | . . . Active Scanning Responses . | . . . Cargo Convoy Interrupts . | . . . Stealth | -11 -10 -9 --------- Run | Scr Mat Mat Distress Signals 6 | . 1 5 Communications Jammed . | . . . Distress Signals . | . . . Times Spotted 51 | . 13 38 Peak Tracking Total 10 | . 6 10 Tactical Retreats 11 | . 1 10 Traps | -11 -10 -9 ------- Run | Scr Mat Mat Traps Triggered 2 | . 1 1 Indirectly . | . . . Trap Hack Attempts . | . . . Triggered . | . . . Disarmed . | . . . Reprogrammed . | . . . Reused . | . . . Traps Extracted . | . . . Installed . | . . . Triggered 1 | . . 1 Machines | -11 -10 -9 ---------- Run | Scr Mat Mat Machines Disabled 1 | . . 1 Max in Single Turn 1 | . . 1 Machines Sabotaged . | . . . Garrisons Compromised . | . . . Overloaded Fab Kills . | . . . Hacking | -11 -10 -9 --------- Run | Scr Mat Mat Machines Accessed 4 | . 3 1 Terminals 3 | . 2 1 Fabricators . | . . . Repair Stations . | . . . Recycling Units 1 | . 1 . Scanalyzers . | . . . Garrison Access . | . . . Total Hacks 9 | . 7 2 Successful 4 | . 2 2 Failed 5 | . 5 . Catastrophic . | . . . Database Lockouts . | . . . Manual . | . . . Terminals 8 | . 6 2 Fabricators . | . . . Repair Stations . | . . . Recycling Units 1 | . 1 . Scanalyzers . | . . . Garrison Access . | . . . Terminal Hacks 3 | . 1 2 Emergency Access Points 1 | . . 1 Locate Traps 1 | . 1 . Zone Layout 1 | . . 1 Fabricator Hacks . | . . . Repair Station Hacks . | . . . Recycling Unit Hacks 1 | . 1 . Report Inventory 1 | . 1 . Scanalyzer . | . . . Garrison Access Hacks . | . . . Unauthorized Hacks . | . . . Terminals . | . . . Fabricators . | . . . Repair Stations . | . . . Recycling Units . | . . . Scanalyzers . | . . . Garrison Access . | . . . Data Cores Recovered . | . . . Used . | . . . Hacking Detections 3 | . 2 1 Full Trace Events . | . . . Feedback Events . | . . . Feedback Blocked . | . . . Robot Schematics Acquired . | . . . Robots Built . | . . . Authchips . | . . . Time . | . . . Total Robot Build Rating . | . . . Part Schematics Acquired . | . . . Parts Built . | . . . Authchips . | . . . Time . | . . . Total Part Build Rating . | . . . Parts Repaired . | . . . Time . | . . . Parts Recycled . | . . . Recycled Matter . | . . . Retrieved Matter . | . . . Retrieved Components . | . . . Parts Scanalyzed . | . . . Part Schematics Acquired . | . . . Parts Damaged . | . . . Bothacking | -11 -10 -9 ------------ Run | Scr Mat Mat Used RIF Installer . | . . . Robots Hacked . | . . . Non-combat . | . . . Combat . | . . . Robot Hacks Applied . | . . . Relay Couplers Released . | . . . Fabnet Peak Effective % . | . . . Robots Rewired . | . . . Allies Hacked . | . . . Hacks Repelled . | . . . Allies | -11 -10 -9 -------- Run | Scr Mat Mat Total Allies . | . . . Largest Group . | . . . Highest-Rated Group . | . . . Highest-Rated Ally . | . . . Total Orders . | . . . Ally Attacks . | . . . Total Damage . | . . . Kills . | . . . Allies Corrupted . | . . . Allies Melted . | . . . Intel | -11 -10 -9 ------- Run | Scr Mat Mat Robot Analysis Total . | . . . Derelict Logs Recovered . | . . . Drone Launches . | . . . Drone Recoveries . | . . . Exploration | -11 -10 -9 ------------- Run | Scr Mat Mat Turns Passed 1333 | 135 453 745 Spaces Moved 881 | 89 297 495 Core 71 | 13 . 58 Treads 4 | . . 4 Legs 429 | 76 297 56 Wheels 377 | . . 377 Hover . | . . . Flight . | . . . Fastest Speed 50 | 50 120 50 Average Speed 105 | 109 120 96 Slowest Speed 400 | 120 120 400 Overloaded Moves . | . . . Propulsion Burnouts . | . . . Robots Hopped . | . . . Cave-ins Triggered . | . . . Exploration Rate (%) 26 | 4 37 37 Regions Visited 2 Branch Regions . Pre-discovered Areas . | . . . Known Exits Taken . | . . . Unknown Exits Taken 2 | 1 1 . Scrap Searched . | . . . Spaces Dug . | . . . Terrain Destroyed . | . . . Melee . | . . . Projectile . | . . . AOE . | . . . Terrain Rammed . | . . . Walls Destroyed . | . . . Machines Disabled . | . . . Actions | -11 -10 -9 --------- Run | Scr Mat Mat Total 1112 | 115 342 655 Wait 38 | . 11 27 Move 879 | 88 296 495 Hop . | . . . Pick Up 41 | 12 5 24 Fast Attach . | . . . Attach 28 | 7 2 19 Detach 5 | . . 5 Swap 4 | . . 4 Drop 12 | . 2 10 Fire 91 | 8 26 57 Melee 13 | . . 13 Ram . | . . . Kick . | . . . Crush . | . . . Escape Stasis . | . . . Rewire 1 | . . 1 Trap . | . . . Miscellaneous . | . . . Route ------- -11/Scrapyard -10/Materials (discovered 2 exits: *Mat / [*Min]) -9/Materials History --------- Turn | Location | Event 11 | -11/Scrapyard | Discovered new exit (range 16) 136 | -11/Scrapyard | Entered Materials 221 | -10/Materials | Discovered new exit (range 8) 308 | -10/Materials | Build established: Mutant 500 | -10/Materials | Discovered new exit (range 8) 589 | -10/Materials | Entered another Materials area 589 | -9/Materials | Evolved 2 slots: Propulsion x2 763 | -9/Materials | Core integrity fell below 50% 782 | -9/Materials | Lost 6 parts (1p4n1w) 1130 | -9/Materials | Core integrity fell below 20% 1167 | -9/Materials | Lost 3 parts (2p1n) 1334 | -9/Materials | Destroyed by S-10 Pest with Light Assault Rifle Last Messages --------------- >>Access(Emergency) Found 1 emergency access door: (13,59) Map updated. >>Layout(Zone) Retrieving Zone 1T layout... Downloaded map data. 01286_ Acquired Terrain Scan Processor. 01293_ Triggered Shock Trap. 01293_ The floor emits a surge of raw power. 01293_ System corrupted (+2). 01298_ JDTKPQUBWLGUMCLCU7HJKV27YR>DNDFGD 01303_ Critical hit (Destroy). 01303_ Hvy. Assault Rifle destroyed. 01316_ S-10 Pest suffers critical hit (Burn). 01316_ S-10 Pest destroyed. 01324_ Particle Gun destroyed. 01326_ Lgt. Ion Engine destroyed. 01329_ S-10 Pest destroyed. 01331_ Acquired 9 matter. Map ----- +----------------------------------------------------+ | #? T????????????????????????????????????? | | +####+#### ????????????????????????????????????? | | #?# # ????????????????????????????????????? | | #?# ### #???????????????????????????????????? | | #?# #?# #???????????????????????????????????? | | #?# """ #?# #???????????????????????????????????? | | #?# """ #?# #???????????????????????????????????? | | #?# """ #?# #???????????????????????????????????? | | #?# #?# #???????????????????????????????????? | | #?# #?# #???????????????????????????????????? | | ### " ### ##???????? ???????????????????????? | | ## T +% #???????# #??????????????????????? | | + " ### #???????# #??????????????????????? | | ## ] #?# #???????# #??????????????????????? | | #####+#### #???????# #??????????????????????? | | #???????# #??????????????????????? | | #???????# #??????????????????????? | | #???????# #??????????????????????? | | # """ """ #????? #k #??????????????????????? | | # """ """ #???" + +??????????????????????? | | # """ """ ## "T #s #??????????????????????? | | # + "" # #??????????????????????? | | # ## # ##############?????????? | | # ####/########## #????????? | | + # %+[s %[ #????????? | | # # ###### @ #????????? | | ###### # #????## ##########??????????????? | | #????# # """ #????# t #??????????????????????? | | #?#### # """ #????# #??????????????????????? | | #?# # """ #????#####??????????????????????? | | #?# + ! """ #???????????????????????????????? | | #####+#+# """ #???????????????????????????????? | | ????????# #???????????????????????????????? | | ????????##########???????????????????????????????? | | ?????????????????????????????????????????????????? | | ?????????????????????????????????????????????????? | | ?????????????????????????????????????????????????? | | ?????????????????????????????????????????????????? | | ?????????????????????????????????????????????????? | | ?????????????????????????????????????????????????? | | ?????????????????????????????????????????????????? | | ?????????????????????????????????????????????????? | | | | | | | | | | | | | | | | | +----------------------------------------------------+ Best States ------------- Heat Dissipation 28 Energy Generation 10 Energy Capacity 125 Matter Stores 300 Matter Capacity 300 Sight Range 16 Terrain Scan Density 10 Evasion (%) 55 Targeting Accuracy 6 Recoil Reduction 2 Item Schematics ----------------- None Robot Schematics ------------------ None Fabricated ------------ Nothing Alien Tech Used ----------------- None Achievements -------------- None Challenges ------------ None Game ------ Seed ImpactHoverMediator Manual? 0 Play Time 00:26:13 Cumulative 12.4 hours Start 2022.06.28 @ 09:05:37 End 2022.06.28 @ 09:30:08 Sessions 1 Manual Loads 0 Difficulty Rogue Special Mode None Game No. 32 Rogue 32 Adventurer 0 Explorer 0 Win Type - Total 0 Types 0/0/0/0/0/0/0/0/0 Lore% 8 Gallery% 16 Achievement% 14 Wizard Run 0 Options --------- ASCII 0 Keyboard 1 Movement Numpad Keybinds 0 Fullscreen 1 Font 12/Smallcaps Map View 83x54 Tactical HUD 1 Map Filters NONE Filters NONE Steam 1 RUN: 0baa670c-88da-4f8f-b091-984025a79243